Cogmind - Beta 16.1 @@@ ROGUE MODE // 2026.02.14 @ 22:40:19 Player: Bt-7274 Result: Destroyed by S-27 Virus with Autogun Performance ------------- Evolutions (6) 3000 Regions Visited (11) 2200 Robots Destroyed (104) 520 Value Destroyed (2570) 2570 Prototype IDs (13) 260 Alien Tech Used (0) 0 Bonus (0) 0 TOTAL SCORE: 8550 Bonus ------- None Cogmind --------- Core Integrity 0/1150 Matter 43/300 Energy 8/100 System Corruption 2% Temperature Cool (0) Movement Hovering (58) Location -4/Factory Parts ------- > --- POWER (2) -------- (None) > --- PROPULSION (5) --- Gyrokinetic Inverter Gyrokinetic Inverter Gyrokinetic Inverter Gyrokinetic Inverter Impulse Thruster > --- UTILITY (10) ----- Experimental Optical Array Advanced Signal Interpreter Advanced Targeting Computer Advanced ECM Suite Hacking Suite > --- WEAPON (2) ------- (None) > --- INVENTORY (5) ---- Light Ion Engine Heavy Flail Peak State ------------ > --- POWER ------------ Light Nuclear Core Micro Antimatter Reactor > --- PROPULSION ------- Improved Flight Unit Improved Flight Unit Improved Flight Unit Nuclear Pulse Array > --- UTILITY ---------- Medium Storage Unit Advanced Weight Redist. System Enhanced Optical Array IFF Parser Advanced Terrain Scanner Hacking Suite Hacking Suite System Shield > --- WEAPON ----------- Power Sword > --- INVENTORY -------- Light Nuclear Core Light Fission Core Improved Flight Unit Advanced Signal Interpreter Seismic Detector Advanced ECM Suite Bore Cannon Rocket Launcher Heavy Flail Power Sword [Rating: 68] Favorites ----------- Power Improved Ion Engine Engine Improved Ion Engine Power Core Light Nuclear Core Reactor Micro Antimatter Reactor Propulsion Improved Flight Unit Treads Light Treads Wheel Compact Wheel Hover Unit Linear Gravjet Flight Unit Improved Flight Unit Utility Hacking Suite Device Seismic Detector Storage High-capacity Storage Unit Processor Visual Processing Unit Hackware Hacking Suite Protection Light Armor Plating Weapon Shotgun Energy Gun EM Pulse Gun Ballistic Gun Shotgun Ballistic Cannon Bore Cannon Launcher Rocket Launcher Impact Weapon Mace Slashing Weapon Power Sword Build | -11 -10 -10 -9 -9 -8 -7 -6 -5 -5 -5 -4 ------- Run | Yrd Mat Min Mat Sto Mat Fac Fac Fac Upp Upp Fac Slots Evolved 12 | . . . 2 . 2 2 2 2 . . 2 Power 1 | . . . . . . . . 1 . . . Propulsion 3 | . . . . . 2 . . 1 . . . Utility 8 | . . . 2 . . 2 2 . . . 2 Weapon . | . . . . . . . . . . . . Parts Attached 113 | 7 9 1 15 12 10 2 22 14 5 . 16 Power 17 | 1 2 . 1 1 2 . 3 4 . . 3 Engine 10 | 1 2 . 1 1 1 . 2 1 . . 1 Core 5 | . . . . . 1 . 1 1 . . 2 Reactor 2 | . . . . . . . . 2 . . . Propulsion 38 | 2 2 . 5 4 3 1 6 8 . . 7 Treads 6 | 2 . . 2 2 . . . . . . . Leg . | . . . . . . . . . . . . Wheel 6 | . 2 . 1 2 . . . . . . 1 Hover 9 | . . . . . . . . 4 . . 5 Flight 17 | . . . 2 . 3 1 6 4 . . 1 Utility 38 | 2 3 . 7 4 2 1 9 1 5 . 4 Device 18 | 1 2 . 3 1 1 . 6 1 2 . 1 Storage 3 | 1 1 . . . 1 . . . . . . Processor 9 | . . . 2 1 . . 2 . 2 . 2 Hackware 4 | . . . 1 . . 1 1 . . . 1 Protection 4 | . . . 1 2 . . . . 1 . . Artifact . | . . . . . . . . . . . . Weapon 20 | 2 2 1 2 3 3 . 4 1 . . 2 Energy Gun 7 | 2 2 1 . . . . . . . . 2 Energy Cannon . | . . . . . . . . . . . . Ballistic Gun 2 | . . . 2 . . . . . . . . Ballistic Cannon 1 | . . . . 1 . . . . . . . Launcher 2 | . . . . . 1 . 1 . . . . Special Weapon . | . . . . . . . . . . . . Impact Weapon 6 | . . . . 2 2 . 1 1 . . . Slashing Weapon 2 | . . . . . . . 2 . . . . Piercing Weapon . | . . . . . . . . . . . . Special Melee Weapon . | . . . . . . . . . . . . Unidentified Prototypes 6 | . . . 1 . . . 2 1 . . 2 Corrupted Parts 1 | . . . . . 1 . . . . . . System Corruption 15 | . . . . . 15 . . . . . . Parts Lost 54 | . 5 1 3 5 1 . 4 13 9 . 13 Power 8 | . 1 . . 1 1 . . 3 1 . 1 Propulsion 22 | . 2 . 2 2 . . 2 6 3 . 5 Utility 14 | . . . 1 . . . 2 3 4 . 4 Weapon 10 | . 2 1 . 2 . . . 1 1 . 3 Highest Loss Streak 9 | . 3 1 2 2 1 . 3 8 9 . 7 To Critical Strikes 2 | . . . . 1 . . . . 1 . . Average Backups 12 | 4 11 19 17 18 12 7 8 9 8 7 5 Power 1 | . 1 3 2 . . . . 1 . . . Propulsion 3 | 2 2 2 4 8 4 3 2 . 1 1 . Utility 5 | . 6 10 8 6 4 1 1 2 2 1 . Weapon 2 | . 1 3 3 2 3 3 3 4 4 5 4 Tool/Special . | . . . . . . . . . . . . Unused Backups 33 | . 6 . 12 5 4 . 3 . . . 3 Power 2 | . 1 . . 1 . . . . . . . Propulsion 13 | . 4 . 6 3 . . . . . . . Utility 8 | . . . 3 . 3 . 2 . . . . Weapon 10 | . 1 . 3 1 1 . 1 . . . 3 Tool/Special . | . . . . . . . . . . . . Average Slot Usage (%) 88 | . 96 99 94 97 88 88 93 72 53 58 51 Engine 8 | . 13 14 11 10 6 . 4 . . . . Treads 6 | . 17 . 1 9 . . . . . . . Wheel 6 | . 7 28 13 11 . . . . . . . Flight 7 | . . . 3 . 34 28 26 17 7 11 8 Device 12 | . 14 14 15 5 8 14 20 9 6 11 5 Storage 9 | . 14 14 11 11 9 7 6 5 5 5 3 Processor 4 | . . . 3 11 9 7 6 5 4 11 12 Hackware 9 | . . . 10 11 9 14 18 17 12 11 12 Protection 1 | . . . 2 5 . . . . . . . Energy Gun 8 | . 27 27 2 . . . . . . . . Ballistic Gun 5 | . . . 19 15 . . . . . . . Impact Weapon 1 | . . . . 6 8 7 2 . . . . Peak Build Rating 68 | 7 14 14 21 21 30 32 58 68 62 39 54 Average Rating 23 | 5 9 13 18 18 27 31 46 48 37 39 41 On Entrance 26 | . 7 14 14 16 16 28 32 54 62 39 39 Avg Prop Armor Cover (%) 12 | . . . 5 11 . . . . 14 13 12 Naked Turns . | . . . . . . . . . . . . Heaviest Build 57 | 14 53 53 57 56 51 20 27 34 32 15 21 Greatest Support 40 | 40 40 32 40 40 26 26 31 37 36 12 33 Greatest Overweight (x) 17 | . 3 1 17 5 1 . . 2 1 1 2 Average Overweight (x) . | . 1 1 1 4 . . . . . 1 . Largest Inventory Capacity 20 | 8 20 20 20 20 20 10 10 10 10 10 10 Average Capacity 15 | 7 15 20 20 20 14 10 10 10 10 10 8 Most Carried 20 | 7 20 20 20 20 19 10 10 10 10 7 10 Average Carried 12 | 4 11 19 17 18 11 7 8 9 7 7 5 Final Capacity 20 | 8 20 20 20 20 10 10 10 10 10 10 5 Final Carried 20 | 7 20 20 14 20 10 7 8 10 7 7 2 Class Distribution -------------------- 52% | Mutant 14% | Scavenger-Mutant 13% | Hacker-Sprinter 11% | Hacker-Mutant 3% | Hacker-Scout Dominant Class ---------------- Mutant | -10/Materials Mutant | -10/Mines Mutant | -9/Materials Scavenger-Mutant | -9/Storage Sprinter | -8/Materials Scavenger-Sprinter | -7/Factory Hacker-Sprinter | -6/Factory Hacker-Scout | -5/Factory Hacker-Mutant | -5/Upper Caves Hacker-Mutant | -5/Upper Caves Hacker-Mutant | -4/Factory Resources | -11 -10 -10 -9 -9 -8 -7 -6 -5 -5 -5 -4 ----------- Run | Yrd Mat Min Mat Sto Mat Fac Fac Fac Upp Upp Fac Matter Collected 2002 | 91 277 10 321 404 32 . 467 131 127 . 142 Remotely . | . . . . . . . . . . . . Salvage Created 3374 | 48 933 124 517 665 188 . 354 267 . . 278 Parts 192 | 6 46 3 38 41 4 . 16 18 . . 20 Haulers Intercepted 10 | . . . 3 3 2 . 2 . . . . Recyclers Shooed 3 | . 1 . 2 . . . . . . . . Parts Field Recycled . | . . . . . . . . . . . . Retrieved Matter . | . . . . . . . . . . . . Parts Self-Destructed . | . . . . . . . . . . . . Prevented . | . . . . . . . . . . . . Parts Restored . | . . . . . . . . . . . . Kills | -11 -10 -10 -9 -9 -8 -7 -6 -5 -5 -5 -4 ------- Run | Yrd Mat Min Mat Sto Mat Fac Fac Fac Upp Upp Fac Combat Hostiles Destroyed 67 | . 13 3 11 10 5 . 5 13 . . 7 Melee 10 | . . . . 4 2 . 1 1 . . 2 Guns 34 | . 12 3 11 5 . . . . . . 3 Cannons 2 | . . . . . . . . . . . 2 AOE 20 | . 1 . . . 3 . 4 12 . . . Classes Destroyed 14 | 1 6 . 4 1 . . . 1 . . 1 Worker 2 | . 1 . 1 . . . . . . . . Builder 3 | . . . 1 1 . . . . . . 1 Tunneler 5 | 3 1 . . . . . 1 . . . . Hauler 10 | . . . 3 3 2 . 2 . . . . Recycler 7 | . 5 . . 1 . . . 1 . . . Operator 5 | . 2 . . 1 . . 1 1 . . . Watcher 5 | . 2 . 1 1 . . 1 . . . . Swarmer 31 | . 3 1 4 . 3 . 4 12 . . 4 Grunt 19 | . 10 2 2 3 1 . . . . . 1 Brawler 1 | . . . 1 . . . . . . . . Duelist 1 | . . . . 1 . . . . . . . Sentry 12 | . . . 4 6 1 . 1 . . . . Hunter 1 | . . . . . . . . 1 . . . Programmer 2 | . . . . . . . . . . . 2 Best Kill Streak 6 | 2 3 2 4 3 5 . 6 4 . . 5 Combat Bots Only 5 | . 3 2 4 3 4 . 4 4 . . 5 Max Kills in Single Turn 4 | 1 1 1 2 1 3 . 3 4 . . 1 Gunslinging . | . . . . . . . . . . . . Exploded 4 | . 1 . . . 3 . 3 4 . . . Melee 1 | . . . . 1 1 . 1 1 . . 1 Uniques/NPCs Destroyed . | . . . . . . . . . . . . Combat | -11 -10 -10 -9 -9 -8 -7 -6 -5 -5 -5 -4 -------- Run | Yrd Mat Min Mat Sto Mat Fac Fac Fac Upp Upp Fac Hostile Shots Fired 631 | . 78 20 41 91 23 8 73 87 30 . 180 Missed 207 | . 21 8 7 28 10 3 33 28 8 . 61 Hits 424 | . 57 12 34 63 13 5 40 59 22 . 119 Melee 6 | . . . 1 4 . . . . 1 . . Projectile 418 | . 57 12 33 59 13 5 40 59 21 . 119 AOE 1 | . . . . . . . 1 . . . . Critical Strikes 20 | . 1 . 2 5 1 1 . 1 4 . 5 Part Disruptions 1 | . . . . . . . . . . . 1 Damage Taken 6700 | . 698 148 433 889 214 78 447 1149 576 . 2068 Core 2202 | . 93 29 14 153 44 33 109 401 161 . 1165 Absorbed by Shields . | . . . . . . . . . . . . Regen/Repaired (Parts) 124 | . . . . 88 . 36 . . . . . Core Remaining (%) 75 | 100 . 51 . 58 92 95 87 . . 43 . Volleys Fired 193 | 7 83 10 35 26 1 . 4 8 . . 19 Largest 2 | 2 2 2 2 2 1 . 1 1 . . 1 Hottest 225 | 90 105 105 63 48 33 . 33 33 . . 225 Shots Fired 340 | 14 159 19 71 45 1 . 4 8 . . 19 Gun 311 | 14 159 19 71 42 . . . . . . 6 Cannon 16 | . . . . 3 . . . . . . 13 Launcher 13 | . . . . . 1 . 4 8 . . . Special . | . . . . . . . . . . . . Kinetic 126 | . . . 68 45 . . . . . . 13 Thermal 138 | 14 112 10 . . . . . . . . 2 Explosive 13 | . . . . . 1 . 4 8 . . . Electromagnetic 63 | . 47 9 3 . . . . . . . 4 Robot Hit Streak 13 | 4 13 10 11 11 1 . 1 2 . . 3 Robot Miss Streak 7 | 2 7 3 3 4 . . 2 2 . . 4 Penetration Max 2 | . . . . . . . . . . . 2 Secondary Targets 2 | . 1 . . 1 . . . . . . . Max Gunslinging Chain 1 | . 1 . . 1 . . . . . . . Shots Hit Robots 281 | 7 98 13 60 52 9 . 12 12 . . 18 Core Hits 150 | 4 39 6 28 21 4 . 13 24 . . 11 Critical Kills 4 | . . . 1 1 . . . . . . 2 Critical Parts Destroyed 6 | . . . . 2 1 . 2 . . . 1 Critical Strikes 21 | 1 4 1 1 3 1 . 3 1 . . 6 Burn 6 | 1 4 1 . . . . . . . . . Destroy 4 | . . . 1 . . . . . . . 3 Smash 6 | . . . . 3 1 . 2 . . . . Sever 5 | . . . . . . . 1 1 . . 3 Melee Attacks 84 | . . . . 23 11 1 21 18 . . 10 Impact 44 | . . . . 23 11 1 9 . . . . Slashing 40 | . . . . . . . 12 18 . . 10 Piercing . | . . . . . . . . . . . . Sneak Attacks 11 | . . . . 4 3 . 2 2 . . . Combat Hostiles 1 | . . . . . 1 . . . . . . Follow-up Attacks . | . . . . . . . . . . . . Damage Inflicted 7782 | 95 1418 222 942 1196 608 . 991 1563 4 . 743 Guns 3180 | 95 1294 213 909 584 . . . . . . 85 Cannons 286 | . . . . . . . . . . . 286 Explosions 1700 | . 89 . . . 169 . 359 1083 . . . Melee 2506 | . . . . 612 439 . 632 480 . . 343 Ramming 110 | . 35 9 33 . . . . . 4 . 29 Kinetic 1756 | . . . 886 584 . . . . . . 286 Thermal 1181 | 95 947 109 . . . . . . . . 30 Explosive 1611 | . . . . . 169 . 359 1083 . . . Electromagnetic 618 | . 436 104 23 . . . . . . . 55 Impact 1435 | . . . . 612 439 . 384 . . . . Slashing 1071 | . . . . . . . 248 480 . . 343 Piercing . | . . . . . . . . . . . . Highest Corruption 15 | . . 1 1 1 15 1 8 . 7 7 2 Average Corruption 2 | . . 1 1 1 15 1 6 . 7 6 1 Corruption Purged 3 | . . . . . . . 2 . . 1 . Corruption Blocked . | . . . . . . . . . . . . Effects 37 | . . . 5 5 8 . 9 . 6 1 3 Message Errors 10 | . . . 2 3 . . 2 . 3 . . Matter Fused 7 | . . . . . 2 . 2 . . 1 2 Heat Flow Errors 4 | . . . . 1 . . 2 . 1 . . Energy Discharges 4 | . . . 1 1 . . 1 . 1 . . Data Loss (minor) 7 | . . . 1 . 2 . 2 . 1 . 1 Misfires 1 | . . . 1 . . . . . . . . Misdirections 4 | . . . . . 4 . . . . . . Overload Shots 1 | . . . . . . . . . . . 1 Overflow Damage 541 | . . . . 161 210 . 149 15 . . 6 Projectiles 6 | . . . . . . . . . . . 6 Explosions 23 | . . . . . . . 8 15 . . . Melee 512 | . . . . 161 210 . 141 . . . . Knockbacks 7 | . . . . 3 . . . . . . 4 Impact 3 | . . . . 3 . . . . . . . Kinetic 3 | . . . . . . . . . . . 3 Secondary 1 | . . . . . . . . . . . 1 Self-Inflicted Damage 168 | . 51 4 16 . 40 . . 42 2 . 13 Shots 3 | . 1 . . . 1 . . 1 . . . Rammed 15 | . 3 2 2 . . . . . 1 . 7 Targets Rammed 15 | . 3 2 2 . . . . . 1 . 7 Kicked . | . . . . . . . . . . . . Crushed . | . . . . . . . . . . . . Highest Temperature 312 | 90 312 91 32 251 4 23 277 242 184 . 142 Average Temperature 62 | 34 58 42 16 44 4 9 129 67 85 . 72 Received Heat Transfer 1257 | . 270 69 147 381 72 63 42 36 93 . 84 Effects 2 | . 1 . . . . . . 1 . . . Energy Bleed 2 | . 1 . . . . . . 1 . . . Siege Activations . | . . . . . . . . . . . . Martial Activations . | . . . . . . . . . . . . Shielding Activations . | . . . . . . . . . . . . Robots Disrupted . | . . . . . . . . . . . . Combat Hostiles . | . . . . . . . . . . . . Robots Corrupted 6 | . . . . 3 2 . 1 . . . . Combat Hostiles 1 | . . . . 1 . . . . . . . Parts Fried 12 | . . . . 4 5 . 3 . . . . Impact Corruptions 16 | . . . . 7 5 . 4 . . . . Robots Melted . | . . . . . . . . . . . . Combat Hostiles . | . . . . . . . . . . . . Parts Melted 7 | . 5 2 . . . . . . . . . Heat Transferred 3272 | 322 2580 333 . . . . . . . . 37 Parts Sabotaged . | . . . . . . . . . . . . Parts Stolen . | . . . . . . . . . . . . Parts Stripped . | . . . . . . . . . . . . Power Chain Reactions 3 | . 2 1 . . . . . . . . . Alert | -11 -10 -10 -9 -9 -8 -7 -6 -5 -5 -5 -4 ------- Run | Yrd Mat Min Mat Sto Mat Fac Fac Fac Upp Upp Fac Maximum Alert Level . | . . . . . . . . . . . . Low Security (%) 100 | 100 100 100 100 100 100 100 100 100 . . 100 Level 1 . | . . . . . . . . . . . . Level 2 . | . . . . . . . . . . . . Level 3 . | . . . . . . . . . . . . Level 4 . | . . . . . . . . . . . . Level 5 . | . . . . . . . . . . . . High Security . | . . . . . . . . . . . . Max Security . | . . . . . . . . . . . . Peak Influence 152 | 5 74 48 97 127 131 59 110 137 . . 152 Initial 59 | . . . 11 13 . 59 24 . . . . Average 33 | . 20 24 34 46 49 41 21 62 . . 35 Influence Increases 2547 | 15 446 118 359 364 213 32 183 445 45 . 327 Destroy 0b10 Robot/C 1340 | . 260 60 220 200 100 . 100 260 . . 140 Destroy 0b10 Robot/NC 185 | 15 55 . 30 35 10 . 25 10 . . 5 Destroy Leader 350 | . 74 10 68 88 34 . 26 30 . . 20 Successful Hack 161 | . 34 . 26 5 28 16 18 34 . . . Disable Machine 45 | . 15 15 . 15 . . . . . . . Destroy Structure 121 | . 8 3 . 6 11 1 14 66 . . 12 Partial Spotted 45 | . . . . . 30 . . 15 . . . Lose Combat Pursuer 300 | . . 30 15 15 . 15 . 30 45 . 150 Influence Decreases 2395 | 15 443 91 357 396 82 112 234 359 131 . 175 Entered New Map 172 | . . 3 19 19 . 72 27 . 32 . . Time Decay 1602 | 15 359 78 318 249 72 40 146 181 65 . 79 Lost Part 338 | . 33 10 20 45 10 . . 90 34 . 96 Lost Ally 22 | . . . . . . . 22 . . . . Purge Threat 261 | . 51 . . 83 . . 39 88 . . . Squads Dispatched 19 | . 4 . . 2 2 2 5 3 . . 1 Investigation 7 | . 2 . . 1 1 2 . 1 . . . Extermination 2 | . . . . . . . 1 1 . . . Reinforcement 10 | . 2 . . 1 1 . 4 1 . . 1 Assault . | . . . . . . . . . . . . Garrison . | . . . . . . . . . . . . Intercept . | . . . . . . . . . . . . Searches Triggered . | . . . . . . . . . . . . Construction Impeded 2 | . . . . . . . 1 . . . 1 Haulers Reinforced . | . . . . . . . . . . . . Active Scanning Responses . | . . . . . . . . . . . . Cargo Convoy Interrupts . | . . . . . . . . . . . . Stealth | -11 -10 -10 -9 -9 -8 -7 -6 -5 -5 -5 -4 --------- Run | Yrd Mat Min Mat Sto Mat Fac Fac Fac Upp Upp Fac Distress Signals 4 | . 1 . . 2 . . 1 . . . . Communications Jammed . | . . . . . . . . . . . . Distress Signals . | . . . . . . . . . . . . Times Spotted 146 | . 26 5 13 17 8 10 9 26 4 . 28 Peak Tracking Total 18 | . 3 3 4 3 5 8 5 8 4 . 18 Tactical Retreats 11 | . . 1 1 1 . 1 . 1 3 . 3 ECM-based Alert Blocks 1 | . . . . . . . . . 1 . . Traps | -11 -10 -10 -9 -9 -8 -7 -6 -5 -5 -5 -4 ------- Run | Yrd Mat Min Mat Sto Mat Fac Fac Fac Upp Upp Fac Traps Triggered 8 | . 1 . . 2 . 1 3 1 . . . Indirectly . | . . . . . . . . . . . . Trap Hack Attempts . | . . . . . . . . . . . . Triggered . | . . . . . . . . . . . . Disarmed . | . . . . . . . . . . . . Reprogrammed . | . . . . . . . . . . . . Reused . | . . . . . . . . . . . . Traps Extracted . | . . . . . . . . . . . . Installed . | . . . . . . . . . . . . Triggered . | . . . . . . . . . . . . Machines | -11 -10 -10 -9 -9 -8 -7 -6 -5 -5 -5 -4 ---------- Run | Yrd Mat Min Mat Sto Mat Fac Fac Fac Upp Upp Fac Machines Disabled 3 | . 1 1 . 1 . . . . . . . Max in Single Turn 1 | . 1 1 . 1 . . . . . . . Garrison Access 2 | . . . . 1 . . . . . . 1 Machines Repaired . | . . . . . . . . . . . . Machines Dismantled . | . . . . . . . . . . . . Machines Sabotaged . | . . . . . . . . . . . . Overloaded Fab Kills . | . . . . . . . . . . . . Hacking | -11 -10 -10 -9 -9 -8 -7 -6 -5 -5 -5 -4 --------- Run | Yrd Mat Min Mat Sto Mat Fac Fac Fac Upp Upp Fac Machines Accessed 41 | . 7 . 3 8 3 4 9 5 . . 2 Terminals 27 | . 6 . 2 6 3 . 5 4 . . 1 Fabricators 6 | . . . . . . 1 4 1 . . . Repair Stations 2 | . . . . 1 . 1 . . . . . Recycling Units 1 | . 1 . . . . . . . . . . Scanalyzers 2 | . . . 1 . . 1 . . . . . Garrison Access 3 | . . . . 1 . 1 . . . . 1 Total Hacks 110 | . 24 . 9 19 12 10 17 14 . . 5 Successful 60 | . 13 . 6 11 7 4 8 10 . . 1 Failed 48 | . 10 . 2 8 5 6 9 4 . . 4 Catastrophic 5 | . 1 . . . 1 1 1 . . . 1 Database Lockouts 2 | . 1 . 1 . . . . . . . . Manual 54 | . 20 . 6 1 11 . 7 7 . . 2 Terminals 79 | . 22 . 7 13 12 . 10 13 . . 2 Fabricators 9 | . . . . . . 1 7 1 . . . Repair Stations 5 | . . . . 3 . 2 . . . . . Recycling Units 2 | . 2 . . . . . . . . . . Scanalyzers 6 | . . . 2 . . 4 . . . . . Garrison Access 9 | . . . . 3 . 3 . . . . 3 Terminal Hacks 27 | . 6 . 3 6 4 . 1 7 . . . Record 3 | . . . . 1 1 . . 1 . . . Prototype ID Bank 4 | . 2 . . . 1 . . 1 . . . Open Door 3 | . . . . 3 . . . . . . . Level Access Points 1 | . . . . . . . . 1 . . . Branch Access Points 1 | . . . 1 . . . . . . . . Terminal Index 3 | . 1 . . . 1 . . 1 . . . Unreport Threat 5 | . 1 . . 2 . . 1 1 . . . Locate Traps 1 | . 1 . . . . . . . . . . Recall Investigation 1 | . . . . . . . . 1 . . . Registered Components 4 | . 1 . 1 . 1 . . 1 . . . Registered Prototypes 1 | . . . 1 . . . . . . . . Fabricator Hacks 4 | . . . . . . . 3 1 . . . Network Status 1 | . . . . . . . 1 . . . . Build 3 | . . . . . . . 2 1 . . . Repair Station Hacks 5 | . . . . 3 . 2 . . . . . Scan Component 3 | . . . . 2 . 1 . . . . . Repair 2 | . . . . 1 . 1 . . . . . Recycling Unit Hacks 1 | . 1 . . . . . . . . . . Retrieve Components 1 | . 1 . . . . . . . . . . Scanalyzer 3 | . . . 1 . . 2 . . . . . Insert Component 2 | . . . . . . 2 . . . . . Retrieve Study 1 | . . . 1 . . . . . . . . Garrison Access Hacks 2 | . . . . 1 . . . . . . 1 Seal Access 2 | . . . . 1 . . . . . . 1 Unauthorized Hacks 18 | . 6 . 2 1 3 . 4 2 . . . Terminals 18 | . 6 . 2 1 3 . 4 2 . . . Botnet 18 | . 6 . 2 1 3 . 4 2 . . . Fabricators . | . . . . . . . . . . . . Repair Stations . | . . . . . . . . . . . . Recycling Units . | . . . . . . . . . . . . Scanalyzers . | . . . . . . . . . . . . Garrison Access . | . . . . . . . . . . . . Data Cores Recovered . | . . . . . . . . . . . . Used . | . . . . . . . . . . . . Hacking Detections 31 | . 7 . 3 5 2 3 6 4 . . 1 Full Trace Events 5 | . 2 . . . 1 2 . . . . . Feedback Events . | . . . . . . . . . . . . Feedback Blocked . | . . . . . . . . . . . . Robot Schematics Acquired . | . . . . . . . . . . . . Robots Built 5 | . . . . . . . 5 . . . . Authchips . | . . . . . . . . . . . . Time 174 | . . . . . . . 174 . . . . Total Robot Build Rating 14 | . . . . . . . 14 . . . . Part Schematics Acquired . | . . . . . . . . . . . . Parts Built 2 | . . . . . . . . 2 . . . Authchips . | . . . . . . . . . . . . Time 64 | . . . . . . . . 64 . . . Total Part Build Rating 16 | . . . . . . . . 16 . . . Part Studies Acquired 1 | . . . 1 . . . . . . . . Parts Repaired 2 | . . . . 1 . 1 . . . . . Time 83 | . . . . 32 . 51 . . . . . Parts Recycled . | . . . . . . . . . . . . Recycled Matter . | . . . . . . . . . . . . Retrieved Matter . | . . . . . . . . . . . . Retrieved Components 2 | . 2 . . . . . . . . . . Parts Scanalyzed . | . . . . . . . . . . . . Part Schematics Acquired . | . . . . . . . . . . . . Parts Damaged . | . . . . . . . . . . . . Bothacking | -11 -10 -10 -9 -9 -8 -7 -6 -5 -5 -5 -4 ------------ Run | Yrd Mat Min Mat Sto Mat Fac Fac Fac Upp Upp Fac Used RIF Installer . | . . . . . . . . . . . . Robots Hacked . | . . . . . . . . . . . . Non-combat . | . . . . . . . . . . . . Combat . | . . . . . . . . . . . . Robot Hacks Applied . | . . . . . . . . . . . . Relay Couplers Released . | . . . . . . . . . . . . Fabnet Peak Effective % . | . . . . . . . . . . . . Robots Rewired . | . . . . . . . . . . . . Allies Hacked . | . . . . . . . . . . . . Hacks Repelled . | . . . . . . . . . . . . Allies | -11 -10 -10 -9 -9 -8 -7 -6 -5 -5 -5 -4 -------- Run | Yrd Mat Min Mat Sto Mat Fac Fac Fac Upp Upp Fac Total Allies 5 | . . . . . . . 5 . . . . Largest Group 3 | . . . . . . . 3 . . . . Highest-Rated Group 60 | . . . . . . . 60 . . . . Highest-Rated Ally 20 | . . . . . . . 20 . . . . Total Orders . | . . . . . . . . . . . . Ally Attacks 6 | . . . . . . . 6 . . . . Total Damage 108 | . . . . . . . 108 . . . . Kills . | . . . . . . . . . . . . Allies Corrupted . | . . . . . . . . . . . . Allies Melted . | . . . . . . . . . . . . Intel | -11 -10 -10 -9 -9 -8 -7 -6 -5 -5 -5 -4 ------- Run | Yrd Mat Min Mat Sto Mat Fac Fac Fac Upp Upp Fac Active Infowar (turns) 3686 | 14 323 . 980 866 166 98 597 480 49 . 113 Optics 2262 | . . . . 779 166 98 597 480 29 . 113 Sensors 275 | . . . 187 88 . . . . . . . IFF 201 | . . . . . . . . 201 . . . Terrain 774 | . . . 354 . . . 184 236 . . . Seismic 1942 | 14 323 . 440 346 . 96 588 90 45 . . T.N.C. 96 | . . . 96 . . . . . . . . ECM 5 | . . . . . . . . . 4 . 1 Robot Analysis Total . | . . . . . . . . . . . . Derelict Logs Recovered 3 | . . 1 . . . . . . 2 . . Drone Launches . | . . . . . . . . . . . . Drone Recoveries . | . . . . . . . . . . . . Exploration | -11 -10 -10 -9 -9 -8 -7 -6 -5 -5 -5 -4 ------------- Run | Yrd Mat Min Mat Sto Mat Fac Fac Fac Upp Upp Fac Turns Passed 5654 | 131 1543 162 980 866 166 98 597 480 243 53 335 Spaces Moved 4873 | 60 713 107 486 373 195 285 1147 791 322 47 347 Core 16 | 2 . . 1 . . . . . . . 13 Treads 463 | 58 355 . 30 20 . . . . . . . Legs . | . . . . . . . . . . . . Wheels 1278 | . 358 107 434 353 . . . . . . 26 Hover 227 | . . . . . . . . 133 91 . 3 Flight 2889 | . . . 21 . 195 285 1147 658 231 47 305 Fastest Speed 28 | 50 115 115 115 110 31 31 31 28 28 114 35 Average Speed 82 | 156 161 115 150 154 50 31 31 38 66 114 60 Slowest Speed 900 | 160 240 115 900 320 101 34 34 200 120 114 150 Overloaded Moves . | . . . . . . . . . . . . Propulsion Burnouts . | . . . . . . . . . . . . Robots Hopped 2 | . . . . . . . . 1 . . 1 Potential Cave-ins . | . . . . . . . . . . . . Cave-ins Triggered . | . . . . . . . . . . . . Exploration Rate (%) 31 | 4 90 35 39 49 19 11 33 19 55 12 12 Regions Visited 11 Branch Regions 4 Pre-discovered Areas 1 | . . 1 . . . . . . . . . Known Exits Taken 3 | . . . 1 . . . . . 1 1 . Unknown Exits Taken 8 | 1 1 1 . 1 1 1 1 1 . . . Scrap Searched 4 | . . 1 . . . . . . 3 . . Spaces Dug 13 | . . . . 1 . 1 7 4 . . . Terrain Destroyed 94 | . 8 3 . 5 11 1 17 43 . . 6 Melee 10 | . . . . 1 . 1 4 4 . . . Projectile 10 | . . . . 4 . . . . . . 6 AOE 74 | . 8 3 . . 11 . 13 39 . . . Terrain Rammed . | . . . . . . . . . . . . Walls Destroyed . | . . . . . . . . . . . . Machines Disabled . | . . . . . . . . . . . . Actions | -11 -10 -10 -9 -9 -8 -7 -6 -5 -5 -5 -4 --------- Run | Yrd Mat Min Mat Sto Mat Fac Fac Fac Upp Upp Fac Total 6031 | 80 944 127 673 576 243 290 1344 925 349 46 434 Wait 535 | . 102 5 96 113 9 2 112 64 14 . 18 Move 4859 | 59 712 106 485 372 194 284 1146 788 322 46 345 Hop 2 | . . . . . . . . 1 . . 1 Pick Up 92 | 7 23 2 18 14 6 . 11 5 2 . 4 Fast Attach 50 | 7 2 . 1 3 2 . 9 11 3 . 12 Attach 48 | . 3 1 7 2 4 3 5 10 6 . 7 Detach 10 | . . . . . . . . 7 1 . 2 Swap 62 | . 6 . 9 14 5 . 19 8 . . 1 Drop 82 | . 10 1 20 9 11 . 17 5 1 . 8 Fire 193 | 7 83 10 35 26 1 . 4 8 . . 19 Melee 84 | . . . . 23 11 1 21 18 . . 10 Ram 13 | . 2 2 2 . . . . . . . 7 Kick . | . . . . . . . . . . . . Crush 1 | . 1 . . . . . . . . . . Escape Stasis . | . . . . . . . . . . . . Rewire . | . . . . . . . . . . . . Trap . | . . . . . . . . . . . . Miscellaneous . | . . . . . . . . . . . . Route ------- -11/Scrapyard -10/Materials (discovered 4 exits: *Mat x3 / [*Min]) -10/Mines -9/Materials (discovered 4 exits: Min x2 / *Sto x2) -9/Storage -8/Materials -7/Factory -6/Factory (discovered 2 exits: *Fac / [*Low]) -5/Factory (discovered 5 exits: Fac x4 / [*Upp]) -5/Upper Caves -5/Upper Caves -4/Factory (discovered 1 exit: Upp) History --------- Turn | Location | Event 17 | -11/Scrapyard | Discovered new exit (range 16) 132 | -11/Scrapyard | Entered Materials 309 | -10/Materials | Build established: Mutant 389 | -10/Materials | Discovered new exit (range 8) 427 | -10/Materials | Discovered new exit (range 16) 1159 | -10/Materials | Lost 3 parts (2n1w) 1347 | -10/Materials | Discovered new exit (range 12) 1401 | -10/Materials | Central database locked down 1436 | -10/Materials | Discovered new exit (range 15) 1675 | -10/Materials | Entered Mines 1737 | -10/Mines | A weapon hastily lodged in a ceiling crevice suddenly fell to the ground 1755 | -10/Mines | Learned location of Zion (-7) 1823 | -10/Mines | Discovered new exit (range 10) 1837 | -10/Mines | Entered Materials 1837 | -9/Materials | Evolved 2 slots: Utility x2 1978 | -9/Materials | Central database locked down 2359 | -9/Materials | Discovered new exit (range 4) 2500 | -9/Materials | Identified exit to Mines 2500 | -9/Materials | Identified exit to Storage 2817 | -9/Materials | Entered Storage 3117 | -9/Storage | Repaired Shotgun 3207 | -9/Storage | Build established: Scavenger-Mutant 3651 | -9/Storage | Discovered new exit (range 13) 3683 | -9/Storage | Entered Materials 3683 | -8/Materials | Evolved 2 slots: Propulsion x2 3752 | -8/Materials | System corruption reached 10% 3831 | -8/Materials | Discovered new exit (range 3) 3849 | -8/Materials | Entered Factory 3849 | -7/Factory | Evolved 2 slots: Utility x2 3908 | -7/Factory | Repaired Imp. Flight Unit? 3944 | -7/Factory | Discovered new exit (range 11) 3947 | -7/Factory | Entered another Factory area 3947 | -6/Factory | Evolved 2 slots: Utility x2 3991 | -6/Factory | Discovered new exit (range 17) 4149 | -6/Factory | Fabricated T-07 Excavator? 4337 | -6/Factory | Build established: Hacker-Sprinter 4348 | -6/Factory | Fabricated B-48 Gladiator? 4382 | -6/Factory | Found Prototype Processor 4382 | -6/Factory | Identified Exp. Targeting Computer 4530 | -6/Factory | Discovered new exit (range 22) 4544 | -6/Factory | Entered another Factory area 4544 | -5/Factory | Evolved 2 slots: Power x1, Propulsion x1 4546 | -5/Factory | Lost 3 parts (2n1u) 4554 | -5/Factory | Identified exit to Factory 4586 | -5/Factory | Discovered new exit (range 12) 4654 | -5/Factory | Fabricated Mic. Antimatter Reactor? 4844 | -5/Factory | Lost 8 parts (2p3n3u) 4967 | -5/Factory | Lost 4 parts (1p2n1w) 5024 | -5/Factory | Entered Upper Caves 5031 | -5/Upper Caves | Spotted B-75 Beast 5073 | -5/Upper Caves | Core integrity fell below 50% 5087 | -5/Upper Caves | Learned location of 1 exit from Factory 5105 | -5/Upper Caves | Lost 9 parts (1p3n4u1w) 5108 | -5/Upper Caves | Encountered a Warlord checkpoint 5110 | -5/Upper Caves | Learned Factory interactive machine intel 5253 | -5/Upper Caves | Discovered new exit (range 12) 5266 | -5/Upper Caves | Identified exit to Upper Caves 5267 | -5/Upper Caves | Entered another Upper Caves area 5303 | -5/Upper Caves | Discovered exit to Factory (range 15) 5320 | -5/Upper Caves | Entered Factory 5320 | -4/Factory | Evolved 2 slots: Utility x2 5321 | -4/Factory | Identified exit to Upper Caves 5322 | -4/Factory | Loaded intel: 54 interactive machine locations 5355 | -4/Factory | Build established: Hacker-Mutant 5492 | -4/Factory | Lost 3 parts (1n2u) 5571 | -4/Factory | Lost 3 parts (3n) 5600 | -4/Factory | Core integrity fell below 50% 5623 | -4/Factory | Core integrity fell below 20% 5647 | -4/Factory | Lost 7 parts (1p1n2u3w) 5655 | -4/Factory | Destroyed by S-27 Virus with Autogun Last Messages --------------- 05616_ HV Slug penetrates S-27 Virus. 05616_ S-27 Virus suffers critical hit (Destroy). 05616_ Destroyed VTOL Module. 05616_ HV Slug penetrates P-70 Sage. 05616_ Bore Cannon destroyed. 05616_ Critical hit (Burn: +37). 05618_ Slammed into G-67 Veteran. 05618_ Exp. Optical Array broken. 05618_ Destabilizing: Short circuit. 05619_ Slammed into G-67 Veteran. 05624_ Slammed into S-27 Virus. 05625_ Adv. ECM Suite broken. 05625_ Destabilizing: Short circuit. 05628_ Acquired Impulse Thruster. 05636_ S-27 Virus destroyed. 05645_ Acquired Gyrokinetic Inverter. 05653_ Slammed into S-27 Virus. 05654_ Destabilizing: Core damaged (-46). 05655_ Slammed into S-27 Virus. Map ----- +----------------------------------------------------+ | ???????# # #????????????????????????????????? | | ???????# +%#????????????????????????????????? | | ???????# #[#????????????????????????????????? | | ???????# #[#????????????????????????????????? | | ???????# #%#????????????????????????????????? | | ???????#######"=#????????????????????????????????? | | ####+##???????#[#????????????????????????????????? | | #########/##???????????????????????????????? | | / [ !*%=#???????????????????????????????? | | ## ! [===#???????????????????????????????? | | ## [!*#???????????????????????????????? | | ## """ """ #???????????????????????????????? | | " " # """ """ +??? ?????????????????????????? | | " " # """ """ #? ?????????????????????????? | | " " # # ????????????????????????? | | " " # # ????????????????????????? | | " " ############ ??????????????????T?????? | | " " #??????????# ?????????????????""?????? | | " " #??????????# #????????????????????????? | | " " #??????????+ #????????????????????????? | | " " #??????????# #######??????????????????? | | = #??????????# # #??????????????????? | | % #??????????# # #??????????????????? | | ##?????????# # !#??????????????????? | | #### T#?????????# # s #??????????????????? | | ???# #?????????# #@s #??????????????????? | | ???# ##?????????# p/s""" #??????????????????? | | ???# #??????????# # """ #??????????????????? | | ???# ############ #p""" #??????????????????? | | ???# t # #??????????????????? | | ???##################+#########??????????????????? | | ???????????????????* ?????????????????????????? | | ????????????????? ???????????????????????? | | ??????????????? """ """ """ ?????????????????????? | | ?????????????# """ """ """ #???????????????????? | | ?????????????# """ """ """ #???????????????????? | | ?????????????# #???????????????????? | | ??????????????? """ """ """ ?????????????????????? | | ????????????????""" """ """??????????????????????? | | ??????????????????"?????"????????????????????????? | | ?????????????????????????????????????????????????? | | ?????????????????????????????????????????????????? | | | | | | | | | | | | | | | | | +----------------------------------------------------+ Best States ------------- Heat Dissipation 43 Energy Generation 32 Energy Capacity 265 Matter Stores 300 Matter Capacity 300 Sight Range 23 Robot Scan Range 14 Terrain Scan Range 20 Terrain Scan Density 10 Additional Mass Support 9 Armor Coverage 150 Evasion (%) 64 Targeting Accuracy 8 Recoil Reduction 2 Offensive Hacking 24 Defensive Hacking 10 Item Schematics ----------------- None Robot Schematics ------------------ None Fabricated ------------ T-07 Excavator | x2 | -6/Factory | Preloaded B-48 Gladiator | x3 | -6/Factory | Preloaded Mic. Antimatter Reactor | x2 | -5/Factory | Preloaded Repaired ---------- Shotgun | 23% | -9/Storage Imp. Flight Unit | 10% | -7/Factory Studied --------- Flight Unit | -9/Materials | Hacked Alien Tech Used ----------------- None Achievements -------------- None Challenges ------------ None Game ------ Seed GravmagMiniCapacitor Manual? 0 Play Time 01:23:35 Cumulative 68.8 hours Start 2026.02.14 @ 20:09:04 End 2026.02.14 @ 22:40:19 Sessions 3 Manual Loads 0 Difficulty Rogue Special Mode None Game No. 83 Rogue 83 Adventurer 0 Explorer 0 Win Type - Total 1 Types 1/0/0/0/0/0/0/0/0/0 Lore% 40 Gallery% 45 Achievement% 31 Wizard Run 0 Options --------- Layout 1 ASCII 0 Keyboard 0 Movement Numpad Keybinds 0 Fullscreen 1 Font 32/SmallcapsGlow Map View 50x35 Zoom Use 0% Tactical HUD 1 Map Filters NONE Filters NONE Steam 1 RUN: 752f23b5-5336-4018-9714-be443abdca2d